fUSD/lending_fUSD_20260503
["ID","MTS","AMOUNT","RATE_DAILY","PERIOD"]
[421496516,1777753958000,-1308.15664255,0.00042441,2]
[421496513,1777753958000,-500.81895534,0.00042441,3]
[421496519,1777753958000,-1006.97076138,0.00042441,30]
[421496520,1777753958000,-677.15636628,0.00042441,2]
[421496518,1777753958000,-484.58523858,0.00042441,7]
[421496523,1777753958000,-260.86523336,0.00042441,120]
[421496522,1777753958000,-7979.58723281,0.00042441,2]
[421496529,1777753958000,-1091.73153979,0.00042441,2]
[421496527,1777753958000,-219.7951977,0.00042441,2]
[421496524,1777753958000,-451.86944343,0.00042441,120]
[421496530,1777753958000,-8300.0,0.00042441,7]
[421496525,1777753958000,-192.55170812,0.00042441,120]
[421496533,1777753958000,-258.329353,0.00042441,30]
[421496528,1777753958000,-997.0,0.00042441,30]
[421496531,1777753958000,-270.14520394,0.00042441,120]
[421496532,1777753958000,-2500.0,0.00042441,2]
[421496536,1777753958000,-3917.99318367,0.00042441,2]
[421496537,1777753958000,-422.63309409,0.00042441,120]
[421496541,1777753958000,-968.6650995,0.00042441,30]
[421496542,1777753958000,-1624.60930429,0.00042441,2]
[421496543,1777753958000,-561.19411935,0.00042441,2]
[421496540,1777753958000,-630.46060057,0.00042441,2]
[421496534,1777753958000,-350.12399806,0.00042441,2]
[421496535,1777753958000,-1100.0,0.00042441,2]
[421496483,1777753958000,-382.10643303,0.00042441,30]
[421496539,1777753958000,-492.8931027,0.00042441,2]
[421496514,1777753958000,-6000.0,0.00042441,2]
[421496515,1777753958000,-383.99107004,0.00042441,2]
[421496538,1777753958000,-933.56516752,0.00042441,2]
[421496521,1777753958000,-373.50316584,0.00042441,14]
[421496512,1777753958000,-177.75634304,0.00042441,2]
[421496480,1777753958000,-600.0,0.00042441,5]
[421496498,1777753958000,-994.33565559,0.00042441,2]
[421496496,1777753958000,-15357.89497851,0.00042441,3]
[421496497,1777753958000,-643.0,0.00042441,2]
[421496485,1777753958000,-1343.84720958,0.00042441,2]
[421496487,1777753958000,-510.91050918,0.00042441,120]
[421496488,1777753958000,-149298.50646455,0.00042441,2]
[421496495,1777753958000,-448.78751803,0.00042441,120]
[421496493,1777753958000,-13157.28049269,0.00042441,2]
[421496489,1777753958000,-788.29398121,0.00042441,120]
[421496494,1777753958000,-188.56199594,0.00042441,2]
[421496490,1777753958000,-10253.73611483,0.00042441,7]
[421496492,1777753958000,-765.88851995,0.00042441,2]
[421496486,1777753958000,-3506.65985138,0.00042441,2]
[421496511,1777753958000,-234.22334859,0.00042441,2]
[421496491,1777753958000,-2252.02444807,0.00042441,2]
[421496505,1777753958000,-550.0,0.00042441,2]
[421496509,1777753958000,-15304.82777512,0.00042441,2]
[421496508,1777753958000,-174323.32869235,0.00042441,2]
[421496503,1777753958000,-179.65647811,0.00042441,2]
[421496506,1777753958000,-10975.0380883,0.00042441,2]
[421496510,1777753958000,-308.09102942,0.00042441,120]
[421496501,1777753958000,-815681.36846102,0.00042441,2]
[421496507,1777753958000,-10754866.89650572,0.00042441,30]
[421496500,1777753958000,-587.06669647,0.00042441,2]
[421496499,1777753958000,-500.0,0.00042441,10]
[421496502,1777753958000,-3322.72615729,0.00042441,2]
[421496504,1777753958000,-15161.44747098,0.00042441,2]
[421496584,1777753959000,-280.26170037,0.00042441,120]
[421496594,1777753959000,-682.32364549,0.00042441,120]
[421496583,1777753959000,-362.81707932,0.00042441,2]
[421496577,1777753959000,-471.54806725,0.00042441,2]
[421496579,1777753959000,-150.0,0.00042441,2]
[421496580,1777753959000,-418.03456641,0.00042441,120]
[421496574,1777753959000,-5830.00131077,0.00042441,2]
[421496572,1777753959000,-156.21789695,0.00042441,120]
[421496575,1777753959000,-896.97673003,0.00042441,2]
[421496582,1777753959000,-12951.95199684,0.00042441,2]
[421496573,1777753959000,-289.52234687,0.00042441,2]
[421496578,1777753959000,-150.0,0.00042441,14]
[421496596,1777753959000,-13685.61421858,0.00042441,2]
[421496585,1777753959000,-491.96319976,0.00042441,120]
[421496586,1777753959000,-518.25464271,0.00042441,2]
[421496591,1777753959000,-500.0,0.00042441,120]
[421496589,1777753959000,-760.38060791,0.00042441,2]
[421496588,1777753959000,-487.89355341,0.00042441,120]
[421496587,1777753959000,-204.23578264,0.00042441,2]
[421496590,1777753959000,-504.91157586,0.00042441,30]
[421496592,1777753959000,-499.26557085,0.00042441,120]
[421496595,1777753959000,-505.26029416,0.00042441,5]
[421496598,1777753959000,-201.30064803,0.00042441,2]
[421496597,1777753959000,-861.53379849,0.00042441,30]
[421496599,1777753959000,-313.88443963,0.00042441,120]
[421496581,1777753959000,-610.0,0.00042441,2]
[421496593,1777753959000,-175.14749835,0.00042441,30]
[421496571,1777753959000,-207.67189105,0.00042441,2]
[421496551,1777753959000,-16588699.05186834,0.00042441,60]
[421496570,1777753959000,-883.86830437,0.00042441,2]
[421496600,1777753959000,-669.59866608,0.00042441,120]
[421496545,1777753959000,-1035.55411647,0.00042441,2]
[421496544,1777753959000,-350.55879932,0.00042441,30]
[421496550,1777753959000,-411.2754228,0.00042441,30]
[421496552,1777753959000,-289.80814107,0.00042441,30]
[421496548,1777753959000,-2257.23915192,0.00042441,2]
[421496555,1777753959000,-12539.95939131,0.00042441,2]
[421496553,1777753959000,-493.98320124,0.00042441,30]
[421496546,1777753959000,-618.0377665,0.00042441,120]
[421496549,1777753959000,-272.91530513,0.00042441,120]
[421496554,1777753959000,-15168.29239136,0.00042441,2]
[421496558,1777753959000,-226.97452644,0.00042441,7]
[421496576,1777753959000,-2226.20952683,0.00042441,2]
[421496547,1777753959000,-373.38818263,0.00042441,2]
[421496557,1777753959000,-1880.04628944,0.00042441,2]
[421496566,1777753959000,-528.13347279,0.00042441,120]
[421496563,1777753959000,-412.08372835,0.00042441,2]
[421496559,1777753959000,-1144.60532152,0.00042441,2]
[421496564,1777753959000,-20794.38440173,0.00042441,2]
[421496560,1777753959000,-756.0,0.00042441,120]
[421496565,1777753959000,-162350.26698118,0.00042441,60]
[421496561,1777753959000,-279.70993436,0.00042441,2]
[421496567,1777753959000,-184.39671321,0.00042441,120]
[421496562,1777753959000,-600.53275645,0.00042441,30]
[421496568,1777753959000,-2498.49098327,0.00042441,2]
[421496569,1777753959000,-565.08733006,0.00042441,120]
[421496556,1777753959000,-327.73500817,0.00042441,120]
[421496606,1777753959000,-20000.0,0.00042441,2]
[421496604,1777753959000,-491.65334049,0.00042441,120]
[421496608,1777753959000,-158.99019165,0.00042441,120]
[421496645,1777753959000,-579.12555854,0.00042441,120]
[421496643,1777753959000,-500.0,0.00042441,120]
[421496639,1777753959000,-500.0,0.00042441,120]
[421496636,1777753959000,-500.0,0.00042441,120]
[421496640,1777753959000,-500.0,0.00042441,120]
[421496634,1777753959000,-500.0,0.00042441,120]
[421496641,1777753959000,-500.0,0.00042441,120]
[421496637,1777753959000,-305.54247956,0.00042441,120]
[421496644,1777753959000,-500.0,0.00042441,120]
[421496642,1777753959000,-500.0,0.00042441,120]
[421496638,1777753959000,-7149.58,0.00042441,120]
[421496649,1777753959000,-50000.0,0.00042441,42]
[421496635,1777753959000,-500.0,0.00042441,120]
[421496658,1777753959000,-50000.0,0.00042441,52]
[421496651,1777753959000,-50000.0,0.00042441,46]
[421496647,1777753959000,-637.65,0.00042441,120]
[421496648,1777753959000,-50000.0,0.00042441,36]
[421496646,1777753959000,-325273.20533498,0.00042441,30]
[421496650,1777753959000,-50000.0,0.00042441,45]
[421496656,1777753959000,-50000.0,0.00042441,50]
[421496655,1777753959000,-50000.0,0.00042441,49]
[421496653,1777753959000,-805.81224193,0.00042441,120]
[421496652,1777753959000,-50000.0,0.00042441,47]
[421496660,1777753959000,-550.0,0.00042441,20]
[421496659,1777753959000,-50000.0,0.00042441,53]
[421496603,1777753959000,-147090.87934344,0.00042441,30]
[421496657,1777753959000,-50000.0,0.00042441,51]
[421496630,1777753959000,-500.0,0.00042441,120]
[421496654,1777753959000,-50000.0,0.00042441,48]
[421496629,1777753959000,-506.05963655,0.00042441,120]
[421496623,1777753959000,-1722.01,0.00042441,120]
[421496602,1777753959000,-203.40739851,0.00042441,120]
[421496605,1777753959000,-326.23690792,0.00042441,120]
[421496601,1777753959000,-1529.26684432,0.00042441,2]
[421496607,1777753959000,-259762.18827192,0.00042441,30]
[421496610,1777753959000,-160.56055617,0.00042441,2]
[421496620,1777753959000,-1108.7555106,0.00042441,30]
[421496609,1777753959000,-467.81986877,0.00042441,2]
[421496611,1777753959000,-10000.0,0.00042441,3]
[421496615,1777753959000,-549.0,0.00042441,30]
[421496612,1777753959000,-1601.71307953,0.00042441,2]
[421496613,1777753959000,-206.3093967,0.00042441,120]
[421496617,1777753959000,-180.0,0.00042441,2]
[421496661,1777753959000,-150.0,0.00042441,7]
[421496614,1777753959000,-502.07908378,0.00042441,120]
[421496616,1777753959000,-222.71745845,0.00042441,7]
[421496626,1777753959000,-7564.07,0.00042441,120]
[421496627,1777753959000,-3327.0630216,0.00042441,30]
[421496628,1777753959000,-500.0,0.00042441,120]
[421496624,1777753959000,-1346.09,0.00042441,120]
[421496625,1777753959000,-1753.2,0.00042441,120]
[421496631,1777753959000,-500.0,0.00042441,120]
[421496621,1777753959000,-903.41,0.00042441,120]
[421496622,1777753959000,-903.41,0.00042441,120]
[421496632,1777753959000,-500.0,0.00042441,120]
[421496633,1777753959000,-500.0,0.00042441,120]
[421496618,1777753959000,-5411.30000252,0.00042441,2]
[421496619,1777753959000,-500.0,0.00042441,2]
[421496685,1777753960000,-613.96,0.00042441,120]
[421496689,1777753960000,-2500.0,0.00042441,120]
[421496686,1777753960000,-613.96,0.00042441,120]
[421496688,1777753960000,-614.01,0.00042441,120]
[421496691,1777753960000,-86547.55572626,0.00042441,60]
[421496692,1777753960000,-204.0,0.00042441,120]
[421496696,1777753960000,-1000.0,0.00042441,120]
[421496693,1777753960000,-1288.0,0.00042441,120]
[421496684,1777753960000,-613.96,0.00042441,120]
[421496694,1777753960000,-1200.0,0.00042441,120]
[421496698,1777753960000,-1000.0,0.00042441,120]
[421496699,1777753960000,-3571.39609538,0.00042441,120]
[421496697,1777753960000,-1000.0,0.00042441,120]
[421496702,1777753960000,-329076.28979255,0.00042441,30]
[421496700,1777753960000,-365637.666389,0.00042441,32]
[421496701,1777753960000,-20172.38576057,0.00042441,60]
[421496714,1777753960000,-2000.0,0.00042441,7]
[421496704,1777753960000,-50000.0,0.00042441,101]
[421496687,1777753960000,-613.96,0.00042441,120]
[421496703,1777753960000,-19000.83833486,0.00042441,2]
[421496695,1777753960000,-1000.0,0.00042441,120]
[421496683,1777753960000,-613.96,0.00042441,120]
[421496669,1777753960000,-613.96,0.00042441,120]
[421496690,1777753960000,-629.398133,0.00042441,120]
[421496705,1777753960000,-335.41320692,0.00042441,120]
[421496663,1777753960000,-150552.33791207,0.00042441,120]
[421496664,1777753960000,-53041.07839111,0.00042441,120]
[421496667,1777753960000,-1030.0,0.00042441,120]
[421496666,1777753960000,-5000.0,0.00042441,7]
[421496662,1777753960000,-282.08239593,0.00042441,60]
[421496665,1777753960000,-10000.0,0.00042441,90]
[421496668,1777753960000,-2500.0,0.00042441,120]
[421496670,1777753960000,-613.96,0.00042441,120]
[421496682,1777753960000,-613.96,0.00042441,120]
[421496671,1777753960000,-613.96,0.00042441,120]
[421496672,1777753960000,-613.96,0.00042441,120]
[421496673,1777753960000,-613.96,0.00042441,120]
[421496674,1777753960000,-613.96,0.00042441,120]
[421496677,1777753960000,-613.96,0.00042441,120]
[421496676,1777753960000,-613.96,0.00042441,120]
[421496678,1777753960000,-613.96,0.00042441,120]
[421496680,1777753960000,-613.96,0.00042441,120]
[421496681,1777753960000,-613.96,0.00042441,120]
[421496679,1777753960000,-613.96,0.00042441,120]
[421496675,1777753960000,-613.96,0.00042441,120]
[421496706,1777753960000,-101432.77873926,0.00042441,30]
[421496707,1777753960000,-4999.999999,0.00042441,120]
[421496708,1777753960000,-400000.0,0.00042441,120]
[421496726,1777753960000,-1842000.0,0.00042441,30]
[421496736,1777753960000,-200000.0,0.00042441,120]
[421496735,1777753960000,-975179.29220507,0.00042441,30]
[421496737,1777753960000,-400000.0,0.00042441,120]
[421496738,1777753960000,-400000.0,0.00042441,120]
[421496739,1777753960000,-400000.0,0.00042441,120]
[421496742,1777753960000,-12708.17302018,0.00042441,120]
[421496741,1777753960000,-200000.0,0.00042441,120]
[421496740,1777753960000,-400000.0,0.00042441,120]
[421496732,1777753960000,-100000.0,0.00042441,30]
[421496746,1777753960000,-10000.0,0.00042441,120]
[421496745,1777753960000,-5000.0,0.00042441,60]
[421496748,1777753960000,-23475.59526084,0.00042441,2]
[421496747,1777753960000,-2326.72095692,0.00042441,2]
[421496752,1777753960000,-200.0,0.00042441,30]
[421496751,1777753960000,-200.0,0.00042441,30]
[421496750,1777753960000,-325.6526225,0.00042441,30]
[421496754,1777753960000,-200.0,0.00042441,30]
[421496749,1777753960000,-596702.37789353,0.00042441,30]
[421496753,1777753960000,-200.0,0.00042441,30]
[421496743,1777753960000,-4787.33757431,0.00042441,30]
[421496731,1777753960000,-5373.91017263,0.00042441,4]
[421496744,1777753960000,-5000.0,0.00042441,30]
[421496733,1777753960000,-3489.05013542,0.00042441,30]
[421496734,1777753960000,-4216.0,0.00042441,120]
[421496713,1777753960000,-200000.0,0.00042441,7]
[421496709,1777753960000,-400000.0,0.00042441,120]
[421496712,1777753960000,-200.10304083,0.00042441,120]
[421496711,1777753960000,-8600.2218807,0.00042441,120]
[421496710,1777753960000,-201132.29,0.00042441,120]
[421496715,1777753960000,-1000.0,0.00042441,2]
[421496717,1777753960000,-11603.0,0.00042441,30]
[421496721,1777753960000,-36728.26389183,0.00042441,120]
[421496724,1777753960000,-642.54025333,0.00042441,30]
[421496722,1777753960000,-114193.73649349,0.00042441,60]
[421496723,1777753960000,-1000000.0,0.00042441,30]
[421496719,1777753960000,-1352.0,0.00042441,30]
[421496720,1777753960000,-1497.34,0.00042441,120]
[421496718,1777753960000,-19892.40234152,0.00042441,30]
[421496725,1777753960000,-2000000.0,0.00042441,30]
[421496730,1777753960000,-7020.05104043,0.00042441,4]
[421496728,1777753960000,-2030.49216573,0.00042441,4]
[421496729,1777753960000,-4108.58529567,0.00042441,120]
[421496716,1777753960000,-1000.0,0.00042441,2]
[421496727,1777753960000,-1221.0,0.00042441,4]
[421496787,1777753961000,-696.16483654,0.00042441,30]
[421496807,1777753961000,-300000.0,0.00042441,120]
[421496793,1777753961000,-850.64619622,0.00042441,120]
[421496791,1777753961000,-4542.24695457,0.00042441,30]
[421496784,1777753961000,-1140.82352615,0.00042441,60]
[421496790,1777753961000,-690.89753356,0.00042441,30]
[421496792,1777753961000,-300.34137323,0.00042441,120]
[421496788,1777753961000,-744.03192368,0.00042441,10]
[421496786,1777753961000,-1157.99310747,0.00042441,120]
[421496783,1777753961000,-539.34224647,0.00042441,120]
[421496794,1777753961000,-183.10758543,0.00042441,120]
[421496796,1777753961000,-443.4,0.00042441,120]
[421496803,1777753961000,-16747.7998854,0.00042441,120]
[421496795,1777753961000,-1640.4677,0.00042441,120]
[421496797,1777753961000,-190.0,0.00042441,30]
[421496804,1777753961000,-453.0,0.00042441,120]
[421496802,1777753961000,-248.0,0.00042441,120]
[421496801,1777753961000,-239.94192321,0.00042441,120]
[421496798,1777753961000,-578316.32715878,0.00042441,60]
[421496799,1777753961000,-289.171326,0.00042441,60]
[421496800,1777753961000,-171.29304668,0.00042441,30]
[421496805,1777753961000,-21553.17057904,0.00042441,61]
[421496808,1777753961000,-173.45447978,0.00042441,30]
[421496811,1777753961000,-351.86401611,0.00042441,120]
[421496785,1777753961000,-2346.26074092,0.00042441,60]
[421496806,1777753961000,-1558.10874448,0.00042441,60]
[421496789,1777753961000,-10025258.26340362,0.00042441,30]
[421496760,1777753961000,-300.0,0.00042441,30]
[421496773,1777753961000,-1123.10859734,0.00042441,120]
[421496758,1777753961000,-300.0,0.00042441,30]
[421496759,1777753961000,-300.0,0.00042441,30]
[421496755,1777753961000,-200.0,0.00042441,30]
[421496757,1777753961000,-300.0,0.00042441,30]
[421496756,1777753961000,-300.0,0.00042441,30]
[421496762,1777753961000,-300.0,0.00042441,30]
[421496812,1777753961000,-158.20477904,0.00042441,120]
[421496767,1777753961000,-100000.0,0.00042441,30]
[421496768,1777753961000,-244971.10717159,0.00042441,30]
[421496770,1777753961000,-7022.84526063,0.00042441,30]
[421496766,1777753961000,-300.0,0.00042441,30]
[421496761,1777753961000,-300.0,0.00042441,30]
[421496777,1777753961000,-394.51998012,0.00042441,120]
[421496763,1777753961000,-300.0,0.00042441,30]
[421496765,1777753961000,-300.0,0.00042441,30]
[421496764,1777753961000,-300.0,0.00042441,30]
[421496772,1777753961000,-1662.44383356,0.00042441,120]
[421496782,1777753961000,-999.78276997,0.00042441,120]
[421496779,1777753961000,-687.3204897,0.00042441,120]
[421496775,1777753961000,-609.5804321,0.00042441,30]
[421496778,1777753961000,-527.25594416,0.00042441,120]
[421496774,1777753961000,-367.72033224,0.00042441,120]
[421496776,1777753961000,-1498.66982084,0.00042441,30]
[421496771,1777753961000,-3201.32219624,0.00042441,30]
[421496780,1777753961000,-175.89123301,0.00042441,120]
[421496781,1777753961000,-10783.2941721,0.00042441,90]
[421496769,1777753961000,-5652.51746065,0.00042441,120]
[421496813,1777753961000,-312.701083,0.00042441,120]
[421496864,1777753961000,-2990.8437405,0.00042441,120]
[421496809,1777753961000,-281.17934141,0.00042441,120]
[421496843,1777753961000,-2220.34,0.00042441,120]
[421496845,1777753961000,-50000.0,0.00042441,54]
[421496848,1777753961000,-500000.0,0.00042441,120]
[421496850,1777753961000,-335.16797094,0.00042441,120]
[421496852,1777753961000,-1237.67881869,0.00042441,120]
[421496847,1777753961000,-500000.0,0.00042441,120]
[421496849,1777753961000,-500000.0,0.00042441,120]
[421496846,1777753961000,-500000.0,0.00042441,120]
[421496851,1777753961000,-1838.23558237,0.00042441,120]
[421496854,1777753961000,-101254.90052548,0.00042441,120]
[421496853,1777753961000,-626.37,0.00042441,120]
[421496863,1777753961000,-337.94094234,0.00042441,120]
[421496844,1777753961000,-322.11,0.00042441,120]
[421496857,1777753961000,-3945.9067153,0.00042441,120]
[421496855,1777753961000,-4122.99005281,0.00042441,120]
[421496860,1777753961000,-500.0,0.00042441,120]
[421496861,1777753961000,-552.82748406,0.00042441,120]
[421496859,1777753961000,-1025.16288784,0.00042441,120]
[421496862,1777753961000,-22171.46486434,0.00042441,120]
[421496865,1777753961000,-88360.65,0.00042441,15]
[421496866,1777753961000,-149944.7664307,0.00042441,60]
[421496867,1777753961000,-97000.0,0.00042441,120]
[421496868,1777753961000,-12317.39585152,0.00042441,120]
[421496870,1777753961000,-86203.39640001,0.00042441,30]
[421496869,1777753961000,-100054.0,0.00042441,90]
[421496814,1777753961000,-555.78301516,0.00042441,120]
[421496858,1777753961000,-379.0,0.00042441,2]
[421496839,1777753961000,-515.19199867,0.00042441,120]
[421496856,1777753961000,-57363.02,0.00042441,120]
[421496841,1777753961000,-433616.61713062,0.00042441,60]
[421496840,1777753961000,-2050029.0,0.00042441,30]
[421496818,1777753961000,-99126.0,0.00042441,30]
[421496816,1777753961000,-21390.56286439,0.00042441,30]
[421496815,1777753961000,-431787.75795855,0.00042441,30]
[421496819,1777753961000,-350000.0,0.00042441,120]
[421496817,1777753961000,-500.0,0.00042441,120]
[421496821,1777753961000,-310530.99,0.00042441,120]
[421496820,1777753961000,-1805.5,0.00042441,120]
[421496824,1777753961000,-290.0,0.00042441,45]
[421496823,1777753961000,-2947.5014953,0.00042441,120]
[421496822,1777753961000,-34524.59,0.00042441,30]
[421496830,1777753961000,-238800.0,0.00042441,60]
[421496829,1777753961000,-11109.20139,0.00042441,120]
[421496810,1777753961000,-161.19080773,0.00042441,30]
[421496826,1777753961000,-1348116.16753902,0.00042441,30]
[421496825,1777753961000,-509.45270711,0.00042441,31]
[421496838,1777753961000,-1000.0,0.00042441,30]
[421496832,1777753961000,-28000.0,0.00042441,120]
[421496834,1777753961000,-856.00725423,0.00042441,120]
[421496837,1777753961000,-155119.0,0.00042441,10]
[421496833,1777753961000,-5000.0,0.00042441,30]
[421496842,1777753961000,-5006.9,0.00042441,7]
[421496835,1777753961000,-45182.4,0.00042441,120]
[421496831,1777753961000,-1000000.0,0.00042441,90]
[421496828,1777753961000,-191.84,0.00042441,120]
[421496827,1777753961000,-4931.277446,0.00042441,120]
[421496836,1777753961000,-24444.41935024,0.00042441,30]
[421496910,1777753962000,-311.0,0.00042441,120]
[421496911,1777753962000,-957.86817376,0.00042441,30]
[421496908,1777753962000,-259.25526643,0.00042441,60]
[421496901,1777753962000,-189.94777156,0.00042441,30]
[421496909,1777753962000,-3088.043211,0.00042441,60]
[421496904,1777753962000,-3517.17826089,0.00042441,120]
[421496903,1777753962000,-155.68613095,0.00042441,7]
[421496899,1777753962000,-2352.3103918,0.00042441,120]
[421496902,1777753962000,-424.19240034,0.00042441,120]
[421496912,1777753962000,-235.0,0.00042441,120]
[421496905,1777753962000,-275.82305398,0.00042441,120]
[421496913,1777753962000,-187.0,0.00042441,120]
[421496919,1777753962000,-5000.0,0.00042441,120]
[421496914,1777753962000,-1623.9416,0.00042441,120]
[421496926,1777753962000,-5000.0,0.00042441,120]
[421496917,1777753962000,-10000.0,0.00042441,120]
[421496915,1777753962000,-238.47528113,0.00042441,120]
[421496916,1777753962000,-1149.44487835,0.00042441,120]
[421496921,1777753962000,-5000.0,0.00042441,120]
[421496923,1777753962000,-5000.0,0.00042441,120]
[421496927,1777753962000,-5000.0,0.00042441,120]
[421496922,1777753962000,-5000.0,0.00042441,120]
[421496925,1777753962000,-5000.0,0.00042441,120]
[421496924,1777753962000,-5000.0,0.00042441,120]
[421496900,1777753962000,-249.88449243,0.00042441,120]
[421496918,1777753962000,-424.0,0.00042441,120]
[421496907,1777753962000,-243.3,0.00042441,30]
[421496872,1777753962000,-405870.01443366,0.00042441,120]
[421496898,1777753962000,-790.47907734,0.00042441,120]
[421496871,1777753962000,-255.82343763,0.00042441,120]
[421496873,1777753962000,-5017.90002229,0.00042441,120]
[421496885,1777753962000,-7673.27904308,0.00042441,2]
[421496877,1777753962000,-69568.15,0.00042441,30]
[421496884,1777753962000,-51947.52151579,0.00042441,120]
[421496881,1777753962000,-1428.0,0.00042441,120]
[421496874,1777753962000,-5000.0,0.00042441,120]
[421496882,1777753962000,-3814.99766991,0.00042441,30]
[421496875,1777753962000,-8828.8015327,0.00042441,120]
[421496879,1777753962000,-1607.0,0.00042441,30]
[421496876,1777753962000,-543.92,0.00042441,30]
[421496878,1777753962000,-5100.0,0.00042441,38]
[421496906,1777753962000,-364.9,0.00042441,120]
[421496880,1777753962000,-5000.0,0.00042441,120]
[421496887,1777753962000,-38707.03144203,0.00042441,120]
[421496888,1777753962000,-14706.88746192,0.00042441,120]
[421496886,1777753962000,-163953.95856319,0.00042441,120]
[421496889,1777753962000,-3349.0,0.00042441,30]
[421496891,1777753962000,-2625.0,0.00042441,30]
[421496892,1777753962000,-264.25560944,0.00042441,120]
[421496895,1777753962000,-1536.28,0.00042441,120]
[421496893,1777753962000,-332000.0,0.00042441,120]
[421496894,1777753962000,-29665.96109772,0.00042441,120]
[421496890,1777753962000,-21259.69272376,0.00042441,10]
[421496896,1777753962000,-1433.95675547,0.00042441,120]
[421496897,1777753962000,-789.0,0.00042441,120]
[421496883,1777753962000,-1000.0,0.00042441,120]
[421496928,1777753962000,-5000.0,0.00042441,120]
[421496938,1777753962000,-390.0121436,0.00042441,120]
[421496920,1777753962000,-5000.0,0.00042441,120]
[421496963,1777753962000,-150.0,0.00042441,120]
[421496965,1777753962000,-518.7988639,0.00042441,31]
[421496959,1777753962000,-150.0,0.00042441,120]
[421496961,1777753962000,-150.0,0.00042441,120]
[421496960,1777753962000,-150.0,0.00042441,120]
[421496966,1777753962000,-193.38,0.00042441,60]
[421496964,1777753962000,-150.0,0.00042441,120]
[421496968,1777753962000,-21000.0,0.00042441,120]
[421496970,1777753962000,-166.44113144,0.00042441,120]
[421496972,1777753962000,-202911.28,0.00042441,120]
[421496971,1777753962000,-178.04719329,0.00042441,120]
[421496977,1777753962000,-327.59,0.00042441,120]
[421496962,1777753962000,-150.0,0.00042441,120]
[421496978,1777753962000,-1183841.64045136,0.00042441,120]
[421496976,1777753962000,-15000.0,0.00042441,120]
[421496969,1777753962000,-5000.0,0.00042441,120]
[421496979,1777753962000,-500.0,0.00042441,120]
[421496973,1777753962000,-156.764332,0.00042441,120]
[421496975,1777753962000,-2910.0,0.00042441,120]
[421496981,1777753962000,-500.0,0.00042441,120]
[421496982,1777753962000,-500.0,0.00042441,120]
[421496984,1777753962000,-500.0,0.00042441,120]
[421496980,1777753962000,-500.0,0.00042441,120]
[421496983,1777753962000,-500.0,0.00042441,120]
[421496985,1777753962000,-151.15384637,0.00042441,120]
[421496929,1777753962000,-5000.0,0.00042441,120]
[421496974,1777753962000,-51875.67,0.00042441,120]
[421496956,1777753962000,-2784.2718561,0.00042441,60]
[421496957,1777753962000,-8072.26,0.00042441,30]
[421496967,1777753962000,-614.32,0.00042441,120]
[421496932,1777753962000,-5000.0,0.00042441,120]
[421496943,1777753962000,-436.47567622,0.00042441,120]
[421496931,1777753962000,-5000.0,0.00042441,120]
[421496942,1777753962000,-154.51119151,0.00042441,30]
[421496933,1777753962000,-5000.0,0.00042441,120]
[421496936,1777753962000,-5000.0,0.00042441,120]
[421496935,1777753962000,-5000.0,0.00042441,120]
[421496937,1777753962000,-5000.0,0.00042441,120]
[421496939,1777753962000,-5000.0,0.00042441,120]
[421496940,1777753962000,-257.77,0.00042441,120]
[421496934,1777753962000,-5000.0,0.00042441,120]
[421496941,1777753962000,-595.47802598,0.00042441,120]
[421496930,1777753962000,-5000.0,0.00042441,120]
[421496945,1777753962000,-153.12233526,0.00042441,20]
[421496958,1777753962000,-13126.29677051,0.00042441,60]
[421496951,1777753962000,-534.57481577,0.00042441,120]
[421496954,1777753962000,-405.06325229,0.00042441,120]
[421496944,1777753962000,-2373.22059796,0.00042441,120]
[421496952,1777753962000,-1973.94982823,0.00042441,30]
[421496953,1777753962000,-20542.33,0.00042441,77]
[421496946,1777753962000,-152.35680135,0.00042441,120]
[421496950,1777753962000,-292.05061591,0.00042441,45]
[421496949,1777753962000,-339.6168809,0.00042441,30]
[421496948,1777753962000,-1036.38495804,0.00042441,120]
[421496955,1777753962000,-458.97818561,0.00042441,120]